bitfinex/quotes_ETHUSD_20260111
["timestamp","ask_amount","ask_price","bid_price","bid_amount"]
[1768170579682,0.96809836,3113.0,3112.4,0.00083787]
[1768170579856,0.96809836,3112.8,3112.4,0.00083787]
[1768170582498,4.18074333,3112.7,3112.3,0.00080528]
[1768170582686,1.38625648,3112.6,3112.3,0.00080528]
[1768170584688,4.59900938,3112.6,3112.3,0.00080528]
[1768170585277,1.38625648,3112.6,3112.3,0.00080528]
[1768170585689,4.59900469,3112.6,3112.3,0.00080528]
[1768170586188,0.96809836,3112.5,3112.3,0.00080528]
[1768170586395,0.45990047,3112.4,3112.3,0.00080528]
[1768170586888,0.45990047,3112.4,3112.1,0.002]
[1768170590502,3.21280317,3112.6,3112.1,0.002]
[1768170590882,3.21280317,3112.6,3112.4,0.002]
[1768170591197,4.18090153,3112.6,3112.1,0.002]
[1768170591397,3.21280317,3112.6,3112.1,0.002]
[1768170592510,3.2135346,3112.7,3112.1,0.98468383]
[1768170592706,3.88162698,3112.7,3112.1,0.98468383]
[1768170593074,0.66889766,3112.7,3112.1,0.98468383]
[1768170593376,0.00080528,3112.7,3112.1,0.98468383]
[1768170594274,0.00080528,3112.7,3112.2,0.98268383]
[1768170597007,0.00080528,3112.7,3112.3,0.98268383]
[1768170599979,0.00080528,3112.7,3112.4,0.98268383]
[1768170600281,0.00080528,3112.7,3112.5,0.98268383]
[1768170601510,0.00080528,3112.7,3112.2,0.98268383]
[1768170602780,0.00080528,3112.7,3112.2,4.19582451]
[1768170603013,0.00080528,3112.7,3112.3,0.98268383]
[1768170603895,0.00080528,3112.7,3112.3,4.19571554]
[1768170604211,0.00080528,3112.7,3112.4,0.41957155]
[1768170604413,0.00080528,3112.7,3112.4,0.002]
[1768170610626,0.94658172,3113.1,3112.5,0.9989553]
[1768170610627,0.001,3113.1,3112.5,0.9989553]
[1768170613129,0.001,3113.1,3112.6,0.9989553]
[1768170617144,0.001,3113.1,3112.6,4.21168691]
[1768170617440,0.001,3113.1,3112.4,3.21573995]
[1768170617648,0.001,3112.8,3112.5,0.57465453]
[1768170618327,0.001,3112.8,3112.5,0.32165453]
[1768170620072,0.94658172,3112.8,3112.4,0.00283795]
[1768170621741,0.94558172,3112.7,3112.4,0.00283795]
[1768170621946,0.94558172,3112.7,3112.3,0.00080536]
[1768170622123,1.0749381,3112.7,3112.1,0.002]
[1768170622318,0.94558172,3112.5,3111.6,4.21268736]
[1768170622725,0.94558172,3112.5,3111.6,0.9989553]
[1768170623760,0.94558172,3112.5,3111.5,3.46685462]
[1768170623761,0.94558172,3112.4,3111.5,3.21384081]
[1768170624063,0.94558172,3112.4,3111.5,4.21279611]
[1768170624219,0.41584471,3112.3,3111.5,4.21279611]
[1768170624662,1.36142643,3112.3,3111.5,4.21279611]
[1768170625466,1.36142643,3112.3,3111.6,3.21377678]
[1768170627327,0.77549205,3112.6,3111.7,0.9989553]
[1768170629029,0.38235638,3112.7,3111.9,0.9989553]
[1768170629436,0.001,3112.5,3111.9,4.2123988]
[1768170631070,0.001,3112.5,3112.0,1.03108897]
[1768170631232,0.001,3112.5,3112.0,0.9989553]
[1768170632336,0.001,3112.5,3112.1,0.9989553]
[1768170632698,0.001,3112.5,3112.3,0.9989553]
[1768170632905,0.00080536,3112.7,3112.4,0.9989553]
[1768170634777,0.00080536,3112.7,3112.4,4.21189131]
[1768170635493,0.00080536,3112.7,3112.4,0.9989553]
[1768170636207,0.00080536,3112.7,3112.3,0.253]
[1768170637602,0.00080536,3112.7,3112.3,3.46605439]
[1768170637897,0.00080536,3112.7,3112.3,3.87632896]
[1768170638834,0.00080536,3112.7,3112.3,4.80727956]
[1768170639833,0.00183795,3112.8,3112.5,0.9309506]
[1768170640034,0.001,3113.1,3112.5,0.9309506]
[1768170640713,6.47,3113.6,3112.9,0.9309506]
[1768170640925,7.67538149,3113.7,3112.9,0.9309506]
[1768170642751,7.67538149,3113.7,3113.0,4.14328596]
[1768170642952,7.67538149,3113.7,3113.0,4.88584979]
[1768170643618,0.95157597,3113.6,3113.0,3.95489919]
[1768170644134,6.72380552,3113.7,3113.0,3.95489919]
[1768170644337,7.67538149,3113.7,3113.0,7.16723455]
[1768170645709,0.25380552,3113.7,3113.2,3.21212899]
[1768170646047,0.25380552,3113.7,3113.2,3.62240356]
[1768170646834,0.00080552,3113.7,3113.2,3.62240356]
[1768170647141,0.00080552,3113.7,3113.2,4.55335416]
[1768170649443,0.00080552,3113.7,3113.2,7.76548315]
[1768170649623,0.00080552,3113.7,3113.3,0.9309506]
[1768170649829,0.00080552,3113.7,3113.4,0.74256383]
[1768170650934,0.00080552,3113.7,3113.4,3.95446022]
[1768170652525,0.00080552,3113.7,3113.4,4.88541082]
[1768170653115,0.00080552,3113.7,3113.4,8.09733347]
[1768170653328,0.00080552,3113.7,3113.4,3.95446022]
[1768170653535,0.002,3114.2,3113.6,0.9309506]
[1768170654910,0.002,3114.2,3113.7,6.42322638]
[1768170655107,0.95238117,3114.3,3113.8,0.253]
[1768170655532,0.0008052,3114.3,3113.8,0.253]
[1768170655811,0.0008052,3114.3,3113.9,0.74256383]
[1768170656010,0.0008052,3114.3,3114.0,0.9309506]
[1768170657021,0.0008052,3114.3,3114.1,3.21120066]
[1768170657810,0.0008052,3114.3,3114.1,6.42240132]
[1768170658125,0.002,3114.5,3114.1,6.42240132]
[1768170658126,0.95157597,3114.4,3114.1,6.42240132]
[1768170658326,0.95157597,3114.4,3114.2,0.41027457]
[1768170658529,0.002,3114.5,3114.2,0.41027457]
[1768170659131,0.002,3114.5,3114.2,3.62134995]
[1768170660352,0.97327263,3114.5,3114.1,0.253]
[1768170660648,0.97327263,3114.5,3113.9,0.00080528]
[1768170662268,0.97327263,3114.5,3113.9,6.42359638]
[1768170664959,1e-08,3114.5,3113.9,6.42359638]
[1768170665162,1e-08,3114.5,3114.4,0.95772494]
[1768170665328,1e-08,3114.5,3114.0,0.66765964]
[1768170665329,1e-08,3114.5,3114.1,0.92440432]
[1768170666144,1e-08,3114.5,3114.0,0.66765964]
[1768170666466,1e-08,3114.5,3114.0,1.59206396]
[1768170666868,1e-08,3114.5,3114.1,3.21120066]
[1768170667075,1e-08,3114.5,3114.1,0.48517876]
[1768170667261,1e-08,3114.5,3114.0,4.38868105]
[1768170667786,1e-08,3114.5,3114.1,0.92440432]
[1768170669057,1e-08,3114.5,3114.3,0.92440432]
[1768170670872,1e-08,3114.5,3114.2,0.90811805]
[1768170671040,1e-08,3114.5,3114.3,0.90811805]
[1768170671239,1e-08,3114.5,3114.3,1.3200393]
[1768170676997,1e-08,3114.5,3114.3,4.53099392]
[1768170677287,1e-08,3114.5,3114.4,0.90811805]
[1768170678957,1e-08,3114.5,3114.3,3.62388756]
[1768170679155,1e-08,3114.5,3114.4,0.90811805]
[1768170679357,1e-08,3114.5,3114.4,1.36131861]
[1768170679556,1e-08,3114.5,3114.4,0.45320056]
[1768170679793,1e-08,3114.5,3114.4,1.36131861]
[1768170680166,1e-08,3114.5,3114.4,4.57220995]
[1768170680361,1e-08,3114.5,3114.4,3.6640919]
[1768170680685,1e-08,3114.5,3114.4,0.45320056]
[1768170681461,0.002,3114.6,3114.5,0.90811805]
[1768170681662,0.00280504,3114.9,3114.6,0.90811805]
[1768170681982,0.00280504,3114.9,3114.5,1.85975589]
[1768170684306,0.00280504,3114.9,3114.5,5.07053668]
[1768170684606,0.00280504,3114.9,3114.5,1.85975589]
[1768170685506,0.00280504,3114.9,3114.5,5.07053648]
[1768170685878,0.00280504,3114.9,3114.6,0.90811805]
[1768170687805,0.00280504,3114.9,3114.5,0.95163784]
[1768170688887,0.002,3114.6,3114.5,1.85975589]
[1768170691120,0.002,3114.6,3114.5,0.252]
[1768170699718,0.45067859,3114.6,3114.4,0.252]
[1768170699912,0.002,3114.6,3114.4,0.252]
[1768170700238,0.002,3114.6,3114.4,1.19439499]
[1768170704725,0.002,3114.6,3114.4,4.40528544]
[1768170704932,0.002,3114.6,3114.4,5.16702237]
[1768170705830,0.002,3114.6,3114.4,1.95613192]
[1768170706322,0.002,3114.6,3114.4,1.01373693]
[1768170706525,0.19667859,3114.5,3114.4,1.01373693]
[1768170709335,0.19667859,3114.5,3114.4,0.252]
[1768170709628,0.002,3114.6,3114.4,0.252]
[1768170709797,0.002,3114.6,3114.4,1.19439499]
[1768170719635,0.002,3114.6,3114.4,4.40527366]
[1768170720440,0.002,3114.6,3114.4,1.19439499]
[1768170720627,0.002,3114.6,3114.4,4.40525418]
[1768170720828,0.002,3114.6,3114.4,1.19439499]
[1768170721643,0.002,3114.6,3114.5,0.94239499]
[1768170721946,0.00280504,3114.9,3114.6,0.94239499]
[1768170722120,0.19948363,3114.9,3114.4,3.46287967]
[1768170722307,0.00280504,3114.9,3114.5,0.94239499]
[1768170728139,0.00280504,3114.9,3114.6,0.94628245]
[1768170730938,0.00280504,3114.9,3114.7,0.9279651]
[1768170731142,0.00280504,3114.9,3114.6,0.44090308]
[1768170731440,0.19948363,3114.9,3114.3,0.001]
[1768170735448,0.19948363,3114.9,3114.6,0.001]
[1768170740060,0.00280504,3114.9,3114.6,0.001]
[1768170741657,0.19948363,3114.9,3114.6,0.001]
[1768170742353,0.00280504,3114.9,3114.6,0.001]
[1768170746253,0.32430623,3114.9,3114.6,0.001]
[1768170755984,0.00280504,3114.9,3114.6,0.001]
[1768170760073,0.19667859,3114.8,3114.3,0.001]
[1768170760299,0.00280504,3114.9,3114.3,0.93736328]
[1768170760986,0.00280504,3114.9,3114.3,0.001]
[1768170760987,0.19848363,3114.9,3114.3,0.001]
[1768170761279,0.19567859,3114.7,3114.3,0.001]
[1768170761480,0.68686366,3114.6,3113.9,0.93716856]
[1768170761785,0.19567859,3114.5,3113.5,0.93636328]
[1768170762075,0.19567859,3114.2,3113.3,1.18916888]
[1768170762286,0.19567859,3114.2,3113.5,0.93636328]
[1768170762850,0.25280528,3114.3,3113.5,0.93636328]
[1768170763380,0.25280528,3114.3,3113.6,0.93636328]
[1768170764300,0.25280528,3114.3,3113.8,0.93636328]
[1768170768294,0.00080528,3114.3,3113.9,0.93636328]
[1768170770470,0.00080528,3114.3,3114.1,0.93736328]
[1768170773499,0.00080528,3114.3,3114.2,0.93636328]
[1768170778603,0.00080528,3114.3,3114.1,0.001]
[1768170779714,0.00080528,3114.3,3114.1,0.93736328]
[1768170783004,0.00280528,3114.3,3114.1,0.93736328]
[1768170783506,0.00280528,3114.3,3114.2,0.93636328]
[1768170792628,0.19767859,3114.6,3114.2,3.62595123]
[1768170793890,0.19767859,3114.6,3114.2,6.83704878]
[1768170795498,0.002,3114.3,3114.2,3.62595123]
[1768170795697,0.19767859,3114.6,3114.2,3.62595123]
[1768170795920,0.19767859,3114.6,3114.3,0.68381447]
[1768170796129,0.002,3114.6,3114.3,0.68381447]
[1768170797595,0.19848363,3114.9,3114.4,3.21089134]
[1768170797923,0.00280504,3114.9,3114.5,0.97147891]
[1768170807350,0.002,3114.6,3114.5,0.97147891]
[1768170807545,0.002,3114.6,3114.5,1.44050284]
[1768170816258,0.002,3114.6,3114.5,0.46902393]
[1768170816464,0.002,3114.6,3114.3,3.21093332]
[1768170816628,0.002,3114.6,3114.4,3.21087206]
[1768170817261,0.002,3114.6,3114.4,4.15562966]
[1768170817823,0.002,3114.6,3114.4,0.9447576]
[1768170818179,0.002,3114.6,3114.3,3.21094362]
[1768170818472,0.19567859,3114.5,3114.4,0.73667927]
[1768170819228,0.002,3114.6,3114.4,0.73667927]
[1768170819530,0.19767859,3114.6,3114.4,0.73667927]
[1768170821765,0.00280504,3114.9,3114.4,3.94756861]
[1768170821936,0.14508984,3114.9,3114.4,3.94756861]
[1768170822137,0.00280504,3114.9,3114.6,0.9447576]
[1768170823173,0.00280504,3114.9,3114.5,0.41615913]
[1768170823669,0.14508984,3114.9,3114.5,0.41615913]
[1768170824171,0.14508984,3114.9,3114.5,3.62692869]
[1768170827585,0.00280504,3114.9,3114.5,3.62692869]
[1768170827792,0.00280504,3114.9,3114.6,0.9447576]
[1768170842606,0.00280504,3114.9,3114.7,0.9447576]
[1768170842773,0.00280504,3114.9,3114.7,0.97686342]
[1768170843104,0.002,3115.0,3114.9,0.9447576]
[1768170843405,0.002,3115.3,3114.7,0.9447576]
[1768170844279,0.98546239,3115.3,3114.5,1.1695539]
[1768170844479,0.98346239,3115.2,3114.5,0.00080512]
[1768170844696,0.98346239,3115.1,3114.5,0.00080512]
[1768170844892,1.79348409,3115.1,3114.5,0.00080512]
[1768170852007,1.54348409,3115.1,3114.5,0.00080512]
[1768170852173,0.73346239,3115.1,3114.5,0.00080512]
[1768170854232,0.73346239,3115.1,3114.8,0.001]
[1768170856211,3.21012284,3115.2,3114.8,0.001]
[1768170856709,0.002,3115.3,3114.8,0.001]
[1768170857106,0.002,3115.3,3114.8,0.95819418]
[1768170857512,3.21197451,3115.3,3114.8,0.95819418]
[1768170858305,0.002,3115.3,3114.8,0.95819418]
[1768170864489,0.66956505,3115.3,3114.8,0.95819418]
[1768170865198,0.41956505,3115.3,3114.8,0.001]
[1768170865599,3.62954577,3115.3,3114.8,0.001]
[1768170865799,3.62954577,3115.3,3115.1,0.001]
[1768170866022,3.62954577,3115.3,3114.8,0.001]
[1768170866329,3.20998072,3115.3,3114.8,0.95819418]
[1768170867130,3.2099029,3115.4,3114.8,0.95819418]
[1768170869533,2.9599029,3115.4,3114.8,0.95819418]
[1768170876129,3.46378967,3115.5,3114.8,0.95819418]
[1768170877450,3.46378967,3115.5,3115.1,0.001]
[1768170877640,0.66755136,3115.4,3115.1,0.001]
[1768170877835,0.66955136,3115.4,3115.1,0.001]
[1768170879754,3.87943507,3115.4,3115.1,0.91691058]
[1768170881253,0.002,3115.4,3115.1,0.91691058]
[1768170884039,0.002,3115.4,3115.1,0.001]
[1768170884854,0.002,3115.4,3114.8,0.91691058]
[1768170885223,0.002,3115.4,3114.8,0.001]
[1768170887051,0.59384744,3115.4,3114.8,0.001]
[1768170888450,1.32079654,3115.4,3114.8,0.001]
[1768170889125,4.53073813,3115.4,3114.8,0.001]
[1768170889852,4.53073813,3115.4,3115.1,0.001]
[1768170890255,3.93889069,3115.4,3115.1,0.001]
[1768170890553,3.93889069,3115.4,3114.8,0.91691058]
[1768170890747,0.40724217,3115.3,3114.8,0.91691058]
[1768170891040,3.93889069,3115.4,3114.8,0.91691058]
[1768170891227,3.21194159,3115.4,3114.8,0.91691058]
[1768170893723,6.42188318,3115.4,3114.8,0.91691058]
[1768170893923,7.01373062,3115.4,3114.8,0.001]
[1768170894123,3.80378903,3115.4,3114.8,0.001]
[1768170894318,3.93889988,3115.4,3114.8,0.91691058]
[1768170901563,0.002,3115.1,3114.8,0.001]
[1768170904474,0.59384744,3115.1,3114.8,0.001]
[1768170905239,0.002,3115.1,3114.8,0.001]
[1768170921302,0.70340058,3115.1,3114.8,0.001]
[1768170926307,0.002,3115.1,3114.8,0.001]
[1768170933483,0.04212712,3115.1,3114.8,0.001]
[1768170933684,3.25239275,3115.1,3114.7,0.90652472]
[1768170933882,3.25239275,3115.1,3114.5,0.90974884]
[1768170934382,3.21226563,3115.1,3114.5,0.90974884]
[1768170934581,0.32122656,3115.0,3114.5,0.90974884]
[1768170938688,0.002,3115.1,3114.5,0.90974884]
[1768170939694,3.21218488,3115.1,3114.5,0.90974884]
[1768170941322,0.00080512,3114.9,3114.5,0.85974884]
[1768170943529,0.00080512,3114.9,3114.3,0.90894372]
[1768170943824,0.64184744,3114.9,3114.1,0.90994372]
[1768170944024,0.00080512,3114.9,3114.1,0.90994372]
[1768170945736,3.21118105,3114.9,3114.1,0.90994372]
[1768170945902,3.87872464,3114.9,3114.1,0.90994372]
[1768170948130,3.87872464,3114.9,3114.5,0.90894372]
[1768170949601,7.08910057,3114.9,3114.5,0.90894372]
[1768170949834,3.87872464,3114.9,3114.4,0.001]
[1768170950603,0.64104232,3114.8,3114.4,0.001]
[1768170950808,0.64104232,3114.6,3114.4,0.001]
[1768170951108,0.68117588,3114.6,3114.1,0.001]
[1768170954441,7.10258021,3114.6,3114.1,0.001]
[1768170954754,0.64104232,3114.5,3114.1,0.001]
[1768170954921,6.42140433,3114.6,3114.1,0.001]
[1768170955241,1.48132307,3114.5,3114.1,0.001]
[1768170955742,0.64104232,3114.4,3113.9,0.00080536]
[1768170956644,3.85196716,3114.4,3113.9,0.00080536]
[1768170959640,3.85196716,3114.4,3114.2,0.001]
[1768170959843,3.85196716,3114.4,3113.9,0.00080536]
[1768170960044,0.85440839,3114.3,3113.9,0.00080536]
[1768170962343,4.06540895,3114.3,3113.9,0.00080536]
[1768170962546,0.85440839,3114.3,3113.9,0.00080536]
[1768170963544,0.85440839,3114.3,3113.9,0.90974908]
[1768170965647,4.06540722,3114.3,3113.9,0.90974908]
[1768170970146,0.40654072,3114.2,3113.9,0.85974908]
[1768170973754,0.00080536,3114.3,3113.9,0.85974908]
[1768170975468,0.00080536,3114.3,3113.5,3.2117956]
[1768170975635,0.00080536,3114.3,3113.6,0.90946312]
[1768170979748,0.96436823,3114.3,3113.6,0.90946312]
[1768170980542,0.00080536,3114.3,3113.6,0.90946312]
[1768170980748,0.64226934,3114.2,3113.6,0.90946312]
[1768170980948,1.60593744,3114.2,3113.6,0.90946312]
[1768170981334,0.64226934,3114.2,3113.6,0.90946312]
[1768170981560,0.9636681,3114.1,3113.6,0.90946312]
[1768170981762,3.21130378,3114.0,3113.6,0.90946312]
[1768170981962,3.21130378,3114.0,3113.3,0.0008056]
[1768170981963,0.41749719,3113.9,3113.4,0.90946312]
[1768170983271,1.38116529,3113.9,3113.4,0.90946312]
[1768170983467,1.38116529,3113.9,3113.7,0.001]
[1768170983768,1.38116529,3113.9,3113.3,0.0008056]
[1768170983982,4.59259833,3113.9,3113.3,0.0008056]
[1768170986252,0.55358353,3113.8,3113.3,0.91026872]
[1768170989886,3.7651091,3113.8,3113.3,0.91026872]
[1768170990177,4.72883912,3113.8,3113.3,0.0008056]
[1768170990877,4.72883912,3113.8,3113.0,0.90946312]
[1768170990878,6.97663467,3113.8,3113.0,0.90946312]
[1768170991080,0.76749276,3113.7,3113.0,0.90946312]
[1768170991291,1.73135282,3113.7,3113.0,0.90946312]
[1768170991782,0.76749276,3113.7,3113.0,0.90946312]
[1768170991983,3.21171634,3113.6,3113.0,0.90946312]
[1768170992283,4.1755764,3113.6,3113.0,0.90946312]
[1768170992453,0.49430692,3113.5,3113.0,0.90946312]
[1768170992653,1.45816698,3113.5,3113.0,0.90946312]
[1768170993180,0.49430692,3113.5,3113.0,0.90946312]
[1768170993398,0.96386006,3113.4,3113.0,0.90946312]
[1768170995165,0.96386006,3113.4,3113.3,0.001]
[1768170995465,1.43085018,3113.4,3113.3,0.001]
[1768170996485,1.43085018,3113.4,3113.2,0.94528531]
[1768170996689,1.43085018,3113.4,3112.8,0.94528531]
[1768170996985,3.21182236,3113.5,3112.8,0.94528531]
[1768170997189,0.96386006,3113.3,3112.8,0.94528531]
[1768171002460,4.21606565,3113.3,3112.8,0.94528531]
[1768171002659,4.21606565,3113.3,3112.5,0.94528531]
[1768171002884,3.25220559,3113.3,3112.5,0.94528531]
[1768171003079,0.96386626,3113.2,3112.5,0.94528531]
[1768171003273,0.96386626,3113.2,3112.6,0.94528531]
[1768171004683,7.38820556,3113.2,3112.4,0.94612334]
[1768171005087,6.4243393,3113.2,3112.4,0.94612334]
[1768171005284,1.60647364,3113.1,3112.4,0.94612334]
[1768171005488,0.253,3113.0,3112.4,0.94612334]
[1768171005879,0.96403971,3112.9,3112.4,0.94612334]
[1768171006973,0.96403971,3112.9,3112.5,0.002]
[1768171008264,4.17649329,3112.9,3112.5,0.002]
[1768171008467,5.07393515,3112.9,3112.4,0.00083803]
[1768171008705,4.10989544,3112.9,3112.4,0.00083803]
[1768171008901,0.94528531,3112.8,3112.4,0.00083803]
[1768171009606,1.63552227,3112.8,3112.4,0.00083803]
[1768171010101,0.69023696,3112.8,3112.4,0.00083803]
[1768171010406,0.94528531,3112.7,3112.4,0.00083803]
[1768171012111,4.15793525,3112.7,3112.4,0.00083803]
[1768171012512,0.94528531,3112.7,3112.4,0.00083803]
[1768171013570,4.15793168,3112.7,3112.4,0.00083803]
[1768171013774,0.69023696,3112.6,3111.6,0.94528531]
[1768171014084,0.69023696,3112.4,3111.5,0.002]
[1768171014287,0.69023696,3112.4,3111.3,0.78447626]
[1768171014510,0.00080392,3111.8,3111.3,0.78447626]
[1768171014674,0.00080392,3111.8,3111.1,0.94528531]
[1768171014872,0.98963095,3111.8,3111.1,0.94528531]
[1768171015073,0.94528531,3111.7,3111.1,0.94528531]
[1768171015272,1.13877694,3111.7,3111.1,0.94528531]
[1768171015475,2.12760397,3111.7,3110.9,0.94728531]
[1768171015706,3.21378069,3111.6,3110.9,0.94728531]
[1768171017688,4.20260772,3111.6,3110.9,0.002]
[1768171017888,0.98882703,3111.5,3110.9,0.002]
[1768171018097,0.42026077,3111.4,3110.9,0.002]
[1768171018579,0.42026077,3111.4,3111.2,0.002]
[1768171018792,0.94528531,3111.3,3110.9,0.002]
[1768171020632,8.36237696,3111.3,3110.8,0.002]
[1768171020784,0.98882703,3111.1,3110.8,0.002]
[1768171021991,4.20317556,3111.1,3110.8,0.002]
[1768171022192,3.21434853,3111.1,3110.8,0.002]
[1768171022386,4.09250415,3111.2,3110.8,0.002]
[1768171024424,0.87826377,3111.2,3110.8,0.002]
[1768171024621,4.15942415,3111.3,3110.8,0.002]
[1768171024809,3.21413884,3111.3,3110.8,0.002]
[1768171024993,0.96456044,3111.2,3110.8,0.002]
[1768171030039,0.001,3110.9,3110.8,0.002]
[1768171031316,0.96556044,3110.9,3110.8,0.002]
[1768171039649,1.38354805,3110.9,3110.8,0.002]
[1768171039841,0.96556044,3110.9,3110.8,0.002]
[1768171040162,0.001,3110.9,3110.8,0.002]
[1768171041468,0.96343192,3110.9,3110.3,3.2151137]
[1768171042873,0.96343192,3110.9,3110.2,3.21797934]
[1768171043558,0.96343192,3110.9,3110.2,0.00280368]
[1768171043956,0.001,3110.9,3110.2,0.00280368]
[1768171044161,0.001,3110.9,3110.3,0.95577765]
[1768171050376,0.32253083,3110.9,3110.3,0.95577765]
[1768171053207,0.32253083,3110.9,3110.3,4.17089719]
[1768171053381,0.32253083,3110.9,3110.6,0.002]
[1768171053382,0.001,3110.9,3110.6,0.002]
[1768171080431,3.21378069,3111.6,3110.8,0.93473084]
[1768171080631,1.12822247,3111.7,3111.3,0.93473084]
[1768171080797,0.93473084,3111.7,3111.3,0.93473084]
[1768171081001,0.91345678,3112.7,3111.7,0.93473084]
[1768171081199,0.00080544,3112.7,3111.7,0.93473084]
[1768171081398,0.00080544,3112.7,3111.9,0.93473084]
[1768171083498,0.95361484,3112.7,3111.9,0.93473084]
[1768171083723,0.95361484,3112.7,3111.7,0.93473084]
[1768171083932,0.91265134,3112.5,3111.7,0.93473084]
[1768171084429,1.01899878,3112.4,3111.7,0.93473084]
[1768171085708,1.01899878,3112.4,3111.4,0.000804]
[1768171086508,0.97883685,3112.2,3111.4,0.000804]
[1768171086702,1.01900136,3112.2,3111.4,0.000804]
[1768171087799,0.97883685,3112.2,3111.4,0.000804]
[1768171088198,0.97883685,3112.2,3111.4,0.66900585]
[1768171088602,0.97883685,3112.2,3111.4,3.88293339]
[1768171088838,0.001,3111.9,3111.4,3.88293339]
[1768171092750,0.001,3111.9,3111.5,0.93294137]
[1768171095015,0.001,3111.9,3111.6,0.93294137]
[1768171096941,0.001,3111.9,3111.7,0.93294137]
[1768171097538,0.001,3111.9,3111.8,0.93294137]
[1768171100341,0.90954752,3112.4,3111.7,3.21364943]
[1768171100641,0.90954752,3112.4,3111.7,3.21564943]
[1768171101047,0.90954752,3112.4,3111.7,0.002]
[1768171103527,0.90954752,3112.4,3111.7,0.93011356]
[1768171104614,0.90954752,3112.4,3111.7,0.89797679]
[1768171105526,0.00080544,3112.7,3111.9,0.93294137]
[1768171105856,0.00080544,3112.7,3112.1,0.93294137]
[1768171107938,0.00080544,3112.7,3112.1,0.96507401]
[1768171108339,0.00080544,3112.7,3112.2,0.93294137]
[1768171113568,0.001,3112.4,3112.2,0.93294137]
[1768171115650,0.001,3112.4,3112.3,0.96762146]
[1768171124170,0.001,3112.4,3112.1,0.96762146]
[1768171124372,0.001,3112.4,3112.2,0.96762146]
[1768171124572,0.001,3112.4,3112.3,0.96762146]
[1768171128169,0.001,3112.4,3112.3,4.18067932]
[1768171128370,0.001,3112.4,3112.3,4.92007034]
[1768171129773,0.9676192,3112.7,3112.3,3.95244888]
[1768171132446,0.64932034,3114.7,3112.4,0.00083811]
[1768171132447,0.96681376,3112.9,3112.4,0.00083811]
[1768171134176,0.96681376,3113.4,3112.4,0.96845957]
[1768171135173,0.96681376,3113.4,3112.4,0.00083811]
[1768171136148,0.96681376,3113.2,3112.4,0.00083811]
[1768171137279,0.96681376,3113.1,3112.4,0.00083811]
[1768171137681,0.96681376,3113.1,3112.6,0.002]
[1768171137883,0.96781376,3113.1,3112.6,0.002]
[1768171140394,0.96681376,3113.0,3112.6,0.002]
[1768171142864,4.17915318,3113.0,3112.6,0.002]
[1768171143063,0.41801532,3112.9,3112.6,0.002]
[1768171143265,3.21233942,3113.0,3112.6,0.002]
[1768171143482,1.00696924,3112.9,3112.6,0.002]
[1768171146265,0.96681376,3112.9,3112.6,0.002]
[1768171150494,3.21233873,3113.0,3112.6,0.002]
[1768171151111,4.17708833,3113.0,3112.6,0.002]
[1768171155305,0.9647496,3113.0,3112.6,0.002]
[1768171156076,3.46628842,3113.1,3112.6,0.002]
[1768171156278,0.254,3113.1,3112.6,0.91744816]
[1768171156710,3.46623303,3113.1,3112.6,0.91744816]
[1768171158007,0.254,3113.1,3112.6,0.91744816]
[1768171160883,3.46624134,3113.1,3112.6,0.91744816]
[1768171161282,0.001,3112.8,3112.6,0.91744816]
[1768171161914,0.001,3113.1,3112.6,0.91744816]
[1768171164389,0.001,3113.1,3112.7,0.91544816]
[1768171171620,0.001,3113.1,3112.8,0.91544816]
[1768171188393,10.60455808,3113.6,3112.9,0.90150003]
[1768171188653,10.60455627,3113.6,3112.9,0.90150003]
[1768171189260,4.13455627,3113.6,3112.9,0.90150003]
[1768171189438,4.13455627,3113.6,3112.9,1.31290958]
[1768171190044,0.92283576,3113.6,3112.9,1.31290958]
[1768171190345,0.92283576,3113.6,3112.9,0.41140955]
[1768171190857,0.92283576,3113.6,3112.9,1.31290958]
[1768171191066,0.92283576,3113.6,3112.9,4.52531761]
[1768171191231,0.2538056,3113.7,3113.0,0.45253176]
[1768171192972,0.2538056,3113.7,3113.0,3.66485867]
[1768171193206,0.2538056,3113.7,3113.0,0.45253176]
[1768171194277,0.92283576,3113.6,3113.0,0.45253176]
[1768171196066,0.002,3113.4,3113.0,0.45253176]
[1768171197979,0.92483576,3113.4,3112.7,4.1140954]
[1768171200266,0.92283576,3113.3,3112.6,0.002]
[1768171200645,0.92483576,3113.4,3112.6,0.90350003]
[1768171200987,0.002,3113.4,3112.8,0.90150003]
[1768171201280,0.002,3113.4,3112.7,3.21261608]
[1768171201281,0.002,3113.4,3113.0,0.90150003]
[1768171201487,4.46462224,3114.2,3113.0,0.90150003]
[1768171201488,0.92283576,3114.5,3113.7,0.90150003]
[1768171201783,0.92283576,3114.8,3113.9,0.80878744]
[1768171201946,3.2112329,3114.9,3113.9,0.80878744]
[1768171202347,3.2112329,3114.9,3114.0,0.90150003]
[1768171202582,0.75993685,3114.8,3114.0,0.90150003]
[1768171203420,1.68277261,3114.8,3114.0,0.90150003]
[1768171203880,0.92283576,3114.7,3113.9,0.00080544]
[1768171204182,0.04013356,3114.6,3113.9,0.00080544]
[1768171204554,0.95334693,3114.4,3113.9,0.00080544]
[1768171204757,0.253,3114.5,3113.3,0.00080568]
[1768171204758,0.95334693,3114.2,3113.3,0.00080568]
[1768171205079,4.46542768,3114.3,3113.3,0.00080568]
[1768171205080,0.95334693,3114.0,3113.3,0.00080568]
[1768171205282,0.95334693,3113.9,3113.3,0.00080568]
[1768171207790,4.16475418,3113.9,3113.3,0.00080568]
[1768171208189,0.001,3113.6,3113.3,0.00080568]
[1768171212290,0.96463588,3113.6,3113.3,0.00080568]
[1768171216204,1.38126165,3113.5,3113.3,0.00080568]
[1768171216409,0.96363588,3113.5,3113.3,0.00080568]
[1768171217907,0.96363588,3113.5,3112.8,0.93582024]
[1768171218288,4.17545567,3113.5,3112.8,0.93582024]
[1768171219610,0.96363588,3113.4,3112.6,0.93782024]
[1768171219782,0.96363588,3113.4,3113.1,0.001]
[1768171219989,4.17556924,3113.4,3113.1,0.001]
[1768171221188,0.96363588,3113.3,3113.1,0.001]
[1768171226182,3.46487204,3113.5,3113.1,0.001]
[1768171226401,4.42850792,3113.5,3113.1,0.001]
[1768171226810,3.46487204,3113.5,3113.1,0.001]
[1768171227126,0.96363588,3113.4,3113.1,0.001]
[1768171229597,4.17556023,3113.4,3113.1,0.001]
[1768171231223,0.96363588,3113.4,3113.1,0.001]